bitfinex/quotes_BTCUSD_20241003
["timestamp","ask_amount","ask_price","bid_price","bid_amount"]
[1727981077642,0.57158034,60790.0,60789.0,0.01060555]
[1727981077863,0.58258034,60790.0,60789.0,0.01060555]
[1727981078582,0.57658034,60790.0,60789.0,0.01060555]
[1727981078793,0.58858034,60790.0,60789.0,0.01060555]
[1727981079181,0.57658034,60790.0,60789.0,0.01060555]
[1727981079417,0.59058034,60790.0,60789.0,0.01060555]
[1727981079644,0.6163767,60790.0,60789.0,0.01060555]
[1727981079858,0.6053767,60790.0,60789.0,0.01060555]
[1727981080090,0.6193767,60790.0,60789.0,0.01060555]
[1727981080743,0.59358034,60790.0,60789.0,0.01060555]
[1727981081235,0.76018941,60790.0,60789.0,0.01060555]
[1727981081683,0.76014508,60790.0,60789.0,0.01060555]
[1727981081929,0.76014508,60790.0,60775.0,0.24668821]
[1727981081930,0.45216626,60776.0,60775.0,0.24668821]
[1727981082174,0.79523312,60776.0,60775.0,0.24668821]
[1727981082406,0.37319941,60776.0,60775.0,0.24668821]
[1727981082651,0.164555,60770.0,60768.0,0.24832421]
[1727981082886,0.10954139,60770.0,60769.0,0.241957]
[1727981083340,0.37842079,60777.0,60776.0,0.164538]
[1727981083341,0.04934779,60777.0,60776.0,0.164538]
[1727981083677,0.10839068,60778.0,60777.0,0.164534]
[1727981083907,0.10839068,60778.0,60777.0,0.151534]
[1727981084323,0.13418654,60778.0,60777.0,0.151534]
[1727981084833,0.13418654,60778.0,60776.0,0.241937]
[1727981085303,0.13418654,60778.0,60777.0,0.164535]
[1727981085529,0.14218654,60778.0,60777.0,0.164535]
[1727981085770,0.15118654,60778.0,60777.0,0.164535]
[1727981086016,0.15118654,60778.0,60776.0,0.241937]
[1727981086252,0.15118654,60778.0,60777.0,0.164535]
[1727981086253,0.11639068,60778.0,60777.0,0.164535]
[1727981086670,0.10839068,60778.0,60777.0,0.164535]
[1727981087158,0.11639068,60778.0,60776.0,0.0784]
[1727981087377,0.12439068,60778.0,60777.0,0.164535]
[1727981087836,0.11639068,60778.0,60777.0,0.164535]
[1727981088110,0.008,60778.0,60777.0,0.69865147]
[1727981088350,0.296036,60794.0,60792.0,0.0833]
[1727981088584,0.10730796,60793.0,60792.0,0.1828]
[1727981088820,0.27179996,60793.0,60792.0,0.1828]
[1727981089052,0.10730796,60793.0,60792.0,0.1828]
[1727981089289,0.1330995,60793.0,60792.0,0.1828]
[1727981089752,0.2330995,60793.0,60792.0,0.1828]
[1727981090254,0.2370995,60793.0,60792.0,0.1828]
[1727981091185,0.2420995,60793.0,60792.0,0.347295]
[1727981091379,0.2380995,60793.0,60792.0,0.347295]
[1727981091578,0.2390995,60793.0,60792.0,0.1828]
[1727981092507,0.1340995,60793.0,60792.0,0.59398321]
[1727981092738,0.02679154,60793.0,60792.0,0.347295]
[1727981092965,0.02779154,60793.0,60792.0,0.347295]
[1727981095457,0.002,60793.0,60792.0,0.347295]
[1727981095894,0.001,60793.0,60792.0,0.347295]
[1727981096639,0.001,60793.0,60792.0,0.1828]
[1727981097087,0.001,60793.0,60792.0,0.0995]
[1727981097314,0.001,60793.0,60792.0,0.263995]
[1727981097543,0.493449,60797.0,60793.0,0.164492]
[1727981097544,0.164485,60796.0,60793.0,0.164492]
[1727981097778,0.10609024,60795.0,60793.0,0.164492]
[1727981098000,0.164492,60793.0,60792.0,0.0995]
[1727981098224,0.164491,60794.0,60792.0,0.0995]
[1727981098447,0.27078417,60794.0,60792.0,0.1005]
[1727981098675,0.2965742,60794.0,60792.0,0.0995]
[1727981098904,0.27078417,60794.0,60792.0,0.0995]
[1727981099604,0.1645,60790.0,60789.0,0.001636]
[1727981099842,0.2712667,60790.0,60789.0,0.001636]
[1727981100328,0.3086847,60790.0,60789.0,0.001636]
[1727981100564,0.2712667,60790.0,60789.0,0.001636]
[1727981100991,0.2722667,60790.0,60789.0,0.001636]
[1727981101212,0.2802667,60790.0,60789.0,0.002636]
[1727981101433,0.2802667,60790.0,60789.0,0.001636]
[1727981102126,0.1157667,60790.0,60789.0,0.001636]
[1727981102351,0.14855941,60790.0,60789.0,0.002636]
[1727981102573,0.14855941,60790.0,60789.0,0.167139]
[1727981102803,0.15655941,60790.0,60789.0,0.259939]
[1727981103160,0.15655941,60790.0,60789.0,0.095436]
[1727981103401,0.55114933,60790.0,60789.0,0.002636]
[1727981103646,0.53614933,60790.0,60789.0,0.001636]
[1727981103893,0.53714933,60790.0,60789.0,0.001636]
[1727981104131,0.61007079,60790.0,60789.0,0.001636]
[1727981104391,0.52368816,60790.0,60789.0,0.001636]
[1727981104616,0.52768816,60790.0,60789.0,0.001636]
[1727981105072,0.53550616,60790.0,60789.0,0.002636]
[1727981105299,0.4615847,60790.0,60789.0,0.002636]
[1727981105568,0.70669287,60790.0,60789.0,0.002636]
[1727981105801,0.74907141,60790.0,60789.0,0.002636]
[1727981106054,1.47608041,60790.0,60789.0,0.002636]
[1727981106308,1.48608041,60790.0,60789.0,0.002636]
[1727981106559,1.51187806,60790.0,60789.0,0.002636]
[1727981106810,1.50387806,60790.0,60789.0,0.002636]
[1727981107045,1.49187806,60790.0,60789.0,0.001636]
[1727981107300,1.51987806,60790.0,60789.0,0.002636]
[1727981107540,1.51987806,60790.0,60789.0,0.001636]
[1727981107541,1.66043875,60790.0,60789.0,0.001636]
[1727981107784,1.67443875,60790.0,60789.0,0.002636]
[1727981108702,1.64643875,60790.0,60789.0,0.001636]
[1727981108927,1.63243875,60790.0,60789.0,0.001636]
[1727981109148,1.64643875,60790.0,60789.0,0.001636]
[1727981109661,1.46608041,60790.0,60789.0,0.001636]
[1727981109911,1.0961227,60790.0,60789.0,0.001636]
[1727981110127,0.4635847,60790.0,60789.0,0.001636]
[1727981110613,0.4000847,60790.0,60789.0,0.001636]
[1727981110850,0.41188113,60790.0,60789.0,0.001636]
[1727981111091,0.42588113,60790.0,60789.0,0.001636]
[1727981111307,0.56178076,60790.0,60789.0,0.001636]
[1727981111534,0.58478076,60790.0,60789.0,0.001636]
[1727981111757,0.57298433,60790.0,60789.0,0.001636]
[1727981112010,0.55898433,60790.0,60789.0,0.001636]
[1727981112670,0.57298433,60790.0,60789.0,0.001636]
[1727981112894,0.55898433,60790.0,60789.0,0.001636]
[1727981113574,0.4000847,60790.0,60789.0,0.001636]
[1727981113792,0.52323236,60790.0,60789.0,0.001636]
[1727981114268,0.49860308,60790.0,60789.0,0.001636]
[1727981114547,0.4000847,60790.0,60789.0,0.001636]
[1727981114986,0.52439916,60790.0,60789.0,0.001636]
[1727981115957,0.49860352,60790.0,60789.0,0.001636]
[1727981116381,0.4000847,60790.0,60789.0,0.001636]
[1727981117550,0.3860847,60790.0,60789.0,0.001636]
[1727981117768,0.3890847,60790.0,60789.0,0.001636]
[1727981118469,0.3750847,60790.0,60789.0,0.001636]
[1727981118679,0.3810847,60790.0,60789.0,0.001636]
[1727981119380,0.40687811,60790.0,60789.0,0.001636]
[1727981120323,0.4549698,60790.0,60789.0,0.001636]
[1727981120564,0.4533847,60790.0,60789.0,0.001636]
[1727981120803,0.54589817,60790.0,60789.0,0.001636]
[1727981121051,0.55189817,60790.0,60789.0,0.001636]
[1727981121295,0.55189693,60790.0,60789.0,0.001636]
[1727981121748,0.70416178,60790.0,60789.0,0.001636]
[1727981122224,0.70616178,60790.0,60789.0,0.001636]
[1727981122452,0.71516178,60790.0,60789.0,0.001636]
[1727981122680,0.62464955,60790.0,60789.0,0.001636]
[1727981122908,0.63764955,60790.0,60789.0,0.001636]
[1727981123347,0.63464955,60790.0,60789.0,0.001636]
[1727981123581,0.62264955,60790.0,60789.0,0.001636]
[1727981123802,0.65064955,60790.0,60789.0,0.001636]
[1727981124027,0.63664955,60790.0,60789.0,0.001636]
[1727981124712,0.4843847,60790.0,60789.0,0.001636]
[1727981125195,0.4703847,60790.0,60789.0,0.001636]
[1727981125410,0.4843847,60790.0,60789.0,0.001636]
[1727981125626,0.4983847,60790.0,60789.0,0.001636]
[1727981126091,0.5003847,60790.0,60789.0,0.001636]
[1727981126327,0.66021441,60790.0,60789.0,0.001636]
[1727981126581,0.64621441,60790.0,60789.0,0.001636]
[1727981127063,0.79849069,60790.0,60789.0,0.001636]
[1727981127296,1.18126669,60790.0,60789.0,0.001636]
[1727981127534,1.22106564,60790.0,60789.0,0.001636]
[1727981127910,1.05478936,60790.0,60789.0,0.001636]
[1727981128082,1.20706553,60790.0,60789.0,0.001636]
[1727981128962,1.22106553,60790.0,60789.0,0.001636]
[1727981129190,0.16653,60779.0,60778.0,0.24668821]
[1727981129439,0.66086921,60779.0,60778.0,0.24668821]
[1727981129871,0.289533,60778.0,60777.0,0.001636]
[1727981130098,0.39792368,60778.0,60777.0,0.001636]
[1727981130746,0.39592368,60778.0,60777.0,0.001636]
[1727981130952,0.56111039,60778.0,60777.0,0.001636]
[1727981131392,0.39592368,60778.0,60777.0,0.001636]
[1727981132076,0.40992368,60778.0,60777.0,0.001636]
[1727981132285,0.53301423,60778.0,60777.0,0.001636]
[1727981132531,0.54701423,60778.0,60777.0,0.001636]
[1727981133789,0.53301423,60778.0,60777.0,0.001636]
[1727981134016,0.6074097,60778.0,60777.0,0.001636]
[1727981134434,0.6094097,60778.0,60777.0,0.001636]
[1727981134658,0.6234097,60778.0,60777.0,0.001636]
[1727981134878,0.6214097,60778.0,60777.0,0.001636]
[1727981135297,0.6074097,60778.0,60777.0,0.001636]
[1727981135526,0.6214097,60778.0,60777.0,0.001636]
[1727981135740,0.6234097,60778.0,60777.0,0.001636]
[1727981135953,0.6074097,60778.0,60777.0,0.001636]
[1727981136171,0.6094097,60778.0,60777.0,0.001636]
[1727981136411,0.50031915,60778.0,60777.0,0.001636]
[1727981136647,0.48631915,60778.0,60777.0,0.001636]
[1727981136880,0.50031915,60778.0,60777.0,0.001636]
[1727981137806,0.48631915,60778.0,60777.0,0.001636]
[1727981138258,0.50031915,60778.0,60777.0,0.001636]
[1727981138686,0.48631915,60778.0,60777.0,0.001636]
[1727981138932,0.50031915,60778.0,60777.0,0.001636]
[1727981139352,0.47231915,60778.0,60777.0,0.001636]
[1727981139571,0.42392368,60778.0,60777.0,0.001636]
[1727981139786,0.44972575,60778.0,60777.0,0.001636]
[1727981140021,0.42672575,60778.0,60777.0,0.001636]
[1727981140315,0.50053162,60778.0,60777.0,0.001636]
[1727981140563,0.55174011,60778.0,60777.0,0.001636]
[1727981140776,0.59191246,60778.0,60777.0,0.001636]
[1727981141235,0.60091246,60778.0,60777.0,0.001636]
[1727981142383,0.58691246,60778.0,60777.0,0.001636]
[1727981142599,0.60091246,60778.0,60777.0,0.001636]
[1727981142855,0.61491246,60778.0,60777.0,0.001636]
[1727981143774,0.58911039,60778.0,60777.0,0.001636]
[1727981145384,0.73690742,60778.0,60777.0,0.001636]
[1727981146059,0.58911039,60778.0,60777.0,0.001636]
[1727981146278,0.42392368,60778.0,60777.0,0.001636]
[1727981147670,0.40092368,60778.0,60777.0,0.001636]
[1727981150694,0.42592368,60778.0,60777.0,0.001636]
[1727981151433,0.45172484,60778.0,60777.0,0.001636]
[1727981151673,0.61491155,60778.0,60777.0,0.001636]
[1727981151939,0.76276745,60778.0,60777.0,0.001636]
[1727981152182,0.69301155,60778.0,60777.0,0.001636]
[1727981152416,0.78511155,60778.0,60777.0,0.001636]
[1727981152645,0.75931039,60778.0,60777.0,0.001636]
[1727981155264,0.50402368,60778.0,60777.0,0.001636]
[1727981155919,0.52982585,60778.0,60777.0,0.001636]
[1727981156151,0.50402368,60778.0,60777.0,0.001636]
[1727981156391,0.42592368,60778.0,60777.0,0.001636]
[1727981156646,0.39792368,60778.0,60777.0,0.001636]
[1727981156880,0.58911039,60778.0,60777.0,0.001636]
[1727981159241,0.57511039,60778.0,60777.0,0.001636]
[1727981159484,0.59753851,60778.0,60777.0,0.001636]
[1727981159712,0.55774295,60778.0,60777.0,0.001636]
[1727981159933,0.42392368,60778.0,60777.0,0.001636]
[1727981160378,0.57174295,60778.0,60777.0,0.001636]
[1727981160637,0.42392368,60778.0,60777.0,0.001636]
[1727981161120,0.40992368,60778.0,60777.0,0.001636]
[1727981161604,0.40092368,60778.0,60777.0,0.001636]
[1727981161827,0.46083495,60778.0,60777.0,0.001636]
[1727981162262,0.45019627,60778.0,60777.0,0.001636]
[1727981162489,0.38692368,60778.0,60777.0,0.001636]
[1727981162717,0.44683495,60778.0,60777.0,0.001636]
[1727981162944,0.48663395,60778.0,60777.0,0.001636]
[1727981163448,0.41272268,60778.0,60777.0,0.001636]
[1727981163656,0.47263395,60778.0,60777.0,0.001636]
[1727981163886,0.64582066,60778.0,60777.0,0.001636]
[1727981164134,0.67045776,60778.0,60777.0,0.001636]
[1727981164378,0.59490939,60778.0,60777.0,0.001636]
[1727981164606,0.60390939,60778.0,60777.0,0.001636]
[1727981167126,0.58011039,60778.0,60777.0,0.001636]
[1727981169174,0.57011039,60778.0,60777.0,0.001636]
[1727981169392,0.57411039,60778.0,60777.0,0.001636]
[1727981169612,0.58611039,60778.0,60777.0,0.001636]
[1727981169826,0.56111039,60778.0,60777.0,0.001636]
[1727981170295,0.57511039,60778.0,60777.0,0.001636]
[1727981170546,0.59891227,60778.0,60777.0,0.001636]
[1727981170774,0.61291227,60778.0,60777.0,0.001636]
[1727981171007,0.61491227,60778.0,60777.0,0.001636]
[1727981171512,0.58911039,60778.0,60777.0,0.001636]
[1727981171724,0.57511039,60778.0,60777.0,0.001636]
[1727981172177,0.58911039,60778.0,60777.0,0.001636]
[1727981172403,0.56111039,60778.0,60777.0,0.001636]
[1727981172864,0.58911039,60778.0,60777.0,0.001636]
[1727981173579,0.42392368,60778.0,60777.0,0.001636]
[1727981174835,0.42592368,60778.0,60777.0,0.001636]
[1727981175046,0.42392368,60778.0,60777.0,0.001636]
[1727981176007,0.44972486,60778.0,60777.0,0.001636]
[1727981176467,0.42392368,60778.0,60777.0,0.001636]
[1727981177108,0.50477456,60778.0,60777.0,0.001636]
[1727981177819,0.50677456,60778.0,60777.0,0.001636]
[1727981178082,0.59767456,60778.0,60777.0,0.001636]
[1727981178498,0.56967456,60778.0,60777.0,0.001636]
[1727981178959,0.58367456,60778.0,60777.0,0.001636]
[1727981179170,0.62347723,60778.0,60777.0,0.001636]
[1727981180069,0.59767456,60778.0,60777.0,0.001636]
[1727981182667,0.42592368,60778.0,60777.0,0.001636]
[1727981182901,0.42392368,60778.0,60777.0,0.001636]
[1727981183368,0.44972587,60778.0,60777.0,0.001636]
[1727981184549,0.45172587,60778.0,60777.0,0.001636]
[1727981184778,0.44972587,60778.0,60777.0,0.001636]
[1727981185684,0.61291258,60778.0,60777.0,0.001636]
[1727981186343,0.58711039,60778.0,60777.0,0.001636]
[1727981186836,0.58911039,60778.0,60777.0,0.001636]
[1727981187050,0.57511039,60778.0,60777.0,0.001636]
[1727981187474,0.40992368,60778.0,60777.0,0.001636]
[1727981187924,0.42392368,60778.0,60777.0,0.001636]
[1727981188350,0.40992368,60778.0,60777.0,0.001636]
[1727981188559,0.42392368,60778.0,60777.0,0.001636]
[1727981189235,0.40092368,60778.0,60777.0,0.001636]
[1727981189469,0.30092368,60778.0,60777.0,0.001636]
[1727981189694,0.30092368,60778.0,60777.0,0.174636]
[1727981190177,0.28692368,60778.0,60777.0,0.174636]
[1727981190643,0.30092368,60778.0,60777.0,0.174636]
[1727981191274,0.27292368,60778.0,60777.0,0.174636]
[1727981191533,0.28092368,60778.0,60777.0,0.174636]
[1727981191785,0.28092368,60778.0,60777.0,0.001636]
[1727981191786,0.45027607,60778.0,60777.0,0.001636]
[1727981191990,0.60848527,60778.0,60777.0,0.001636]
[1727981192208,0.46727607,60778.0,60777.0,0.001636]
[1727981192870,0.41092368,60778.0,60777.0,0.001636]
[1727981193579,0.43672282,60778.0,60777.0,0.001636]
[1727981193797,0.42872282,60778.0,60777.0,0.001636]
[1727981194010,0.40572282,60778.0,60777.0,0.001636]
[1727981194223,0.41872282,60778.0,60777.0,0.001636]
[1727981194871,0.41172282,60778.0,60777.0,0.001636]
[1727981195099,0.42372282,60778.0,60777.0,0.001636]
[1727981195597,0.58690953,60778.0,60777.0,0.001636]
[1727981195846,0.42372282,60778.0,60777.0,0.001636]
[1727981196083,0.57188009,60778.0,60777.0,0.001636]
[1727981196285,0.73370921,60778.0,60777.0,0.001636]
[1727981196496,0.72070921,60778.0,60777.0,0.001636]
[1727981196719,0.88389592,60778.0,60777.0,0.001636]
[1727981197002,0.89789592,60778.0,60777.0,0.001636]
[1727981197228,0.77273865,60778.0,60777.0,0.001636]
[1727981197454,0.75873865,60778.0,60777.0,0.001636]
[1727981197686,0.60955194,60778.0,60777.0,0.001636]
[1727981197899,0.59755194,60778.0,60777.0,0.001636]
[1727981198351,0.61155194,60778.0,60777.0,0.001636]
[1727981199036,0.59755194,60778.0,60777.0,0.001636]
[1727981199525,0.61155194,60778.0,60777.0,0.001636]
[1727981199996,0.77673865,60778.0,60777.0,0.001636]
[1727981200222,0.76273865,60778.0,60777.0,0.001636]
[1727981200451,0.92940506,60778.0,60777.0,0.001636]
[1727981200689,0.77673865,60778.0,60777.0,0.001636]
[1727981200930,0.96920595,60778.0,60777.0,0.001636]
[1727981201182,0.94120595,60778.0,60777.0,0.001636]
[1727981201417,0.96920595,60778.0,60777.0,0.001636]
[1727981201989,0.95520595,60778.0,60777.0,0.001636]
[1727981202417,0.96920595,60778.0,60777.0,0.001636]
[1727981202640,0.78853954,60778.0,60777.0,0.001636]
[1727981202863,0.80253954,60778.0,60777.0,0.001636]
[1727981203085,0.63935283,60778.0,60777.0,0.001636]
[1727981203562,0.62335283,60778.0,60777.0,0.001636]
[1727981203795,0.80398411,60778.0,60777.0,0.001636]
[1727981204014,0.60035283,60778.0,60777.0,0.001636]
[1727981204235,0.56085451,60778.0,60777.0,0.001636]
[1727981204454,0.39872457,60778.0,60777.0,0.001636]
[1727981204679,0.56085506,60778.0,60777.0,0.001636]
[1727981204898,0.57485506,60778.0,60777.0,0.001636]
[1727981205116,0.56085506,60778.0,60777.0,0.001636]
[1727981205336,0.57385506,60778.0,60777.0,0.001636]
[1727981206017,0.55985506,60778.0,60777.0,0.001636]
[1727981206254,0.57385506,60778.0,60777.0,0.001636]
[1727981209724,0.57385506,60778.0,60777.0,0.093736]
[1727981209725,0.42572457,60778.0,60777.0,0.093736]
[1727981210412,0.52446205,60778.0,60777.0,0.093736]
[1727981211107,0.07636727,60778.0,60777.0,0.338071]
[1727981211348,0.12341942,60787.0,60784.0,0.0921]
[1727981211567,0.10717264,60788.0,60787.0,0.256608]
[1727981211794,0.10717264,60788.0,60787.0,0.0921]
[1727981212499,0.165322,60789.0,60788.0,0.164506]
[1727981212500,0.000818,60789.0,60788.0,0.164506]
[1727981212916,0.000818,60789.0,60788.0,0.243106]
[1727981213131,0.000818,60789.0,60788.0,0.24592143]
[1727981214444,0.001818,60789.0,60788.0,0.25192143]
[1727981214924,0.002818,60789.0,60788.0,0.25892143]
[1727981215164,0.001818,60789.0,60788.0,0.25192143]
[1727981215386,0.002818,60789.0,60788.0,0.25992143]
[1727981216332,0.002818,60789.0,60788.0,0.0926]
[1727981216549,0.002818,60789.0,60788.0,0.014]
[1727981216550,0.37422301,60789.0,60788.0,0.014]
[1727981217502,0.37322301,60789.0,60788.0,0.008]
[1727981217741,0.164516,60784.0,60783.0,0.24668821]
[1727981217967,0.27209461,60784.0,60783.0,0.24668821]
[1727981218195,0.10757861,60784.0,60782.0,0.1721]
[1727981218426,0.27216528,60783.0,60782.0,0.1721]
[1727981219345,0.10764628,60783.0,60782.0,0.336622]
[1727981219560,0.10764628,60783.0,60782.0,0.1721]
[1727981220665,0.10764628,60783.0,60782.0,0.1751]
[1727981221382,0.27216528,60783.0,60782.0,0.1751]
[1727981221622,0.27216528,60783.0,60782.0,0.1791]
[1727981222507,0.27216528,60783.0,60782.0,0.1761]
[1727981223024,0.27416528,60783.0,60782.0,0.1761]
[1727981223284,0.27416528,60783.0,60782.0,0.1721]
[1727981224416,0.164533,60778.0,60777.0,0.001636]
[1727981224633,0.27292368,60778.0,60777.0,0.001636]
[1727981224856,0.10839068,60778.0,60777.0,0.001636]
[1727981225068,0.27292368,60778.0,60777.0,0.001636]
[1727981225531,0.27292368,60778.0,60777.0,0.166171]
[1727981225532,0.10839068,60778.0,60777.0,0.166171]
[1727981225760,0.000818,60789.0,60782.0,0.0954]
[1727981225983,0.164514,60785.0,60782.0,0.25992]
[1727981226206,0.10757861,60784.0,60783.0,0.0753]
[1727981226665,0.27209461,60784.0,60783.0,0.0753]
[1727981227634,0.329051,60781.0,60779.0,0.24668821]
[1727981227825,0.1080523,60780.0,60779.0,0.24668821]
[1727981228062,0.1080523,60780.0,60777.0,0.076936]
[1727981228298,0.165518,60784.0,60779.0,0.493587]
[1727981228526,0.10784928,60783.0,60780.0,0.164527]
[1727981229224,0.10784928,60783.0,60777.0,0.076936]
[1727981229437,0.164527,60781.0,60777.0,0.241471]
[1727981229853,0.001,60780.0,60777.0,0.241471]
[1727981229994,0.164527,60781.0,60777.0,0.241471]
[1727981230220,0.10818765,60780.0,60777.0,0.076936]
[1727981230424,0.27271565,60780.0,60777.0,0.241471]
[1727981230971,0.43924365,60780.0,60777.0,0.076936]
[1727981231172,0.164533,60778.0,60777.0,0.076936]
[1727981231633,0.11418765,60780.0,60777.0,0.076936]
[1727981231978,0.006,60780.0,60779.0,0.16453]
[1727981232387,0.004,60780.0,60779.0,0.16453]
[1727981232593,0.004,60780.0,60779.0,0.26223]
[1727981233014,0.02579423,60781.0,60779.0,0.26223]
[1727981233015,0.02579423,60781.0,60780.0,0.164527]
[1727981233756,0.13377886,60781.0,60779.0,0.1057]
[1727981233981,0.2725793,60780.0,60779.0,0.1057]
[1727981234189,0.2725793,60780.0,60779.0,0.0977]
[1727981234724,0.24668821,60787.0,60779.0,0.0977]
[1727981234725,0.329016,60788.0,60780.0,0.004]
[1727981234945,0.329016,60788.0,60782.0,0.164521]
[1727981234946,0.43652995,60787.0,60782.0,0.164521]
[1727981235170,0.43652995,60787.0,60780.0,0.168525]
[1727981235171,0.164517,60784.0,60780.0,0.168525]
[1727981235391,0.10778161,60783.0,60780.0,0.168525]
[1727981235628,0.10778161,60783.0,60780.0,0.174525]
[1727981235629,0.001,60781.0,60780.0,0.174525]
[1727981235848,0.10778161,60783.0,60781.0,0.164523]
[1727981236519,0.165527,60780.0,60779.0,0.1027]
[1727981236754,0.27364697,60780.0,60779.0,0.005]
[1727981236986,0.27264897,60780.0,60777.0,0.076936]
[1727981237200,0.10825533,60779.0,60777.0,0.241471]
[1727981237411,0.10825533,60779.0,60777.0,0.076936]
[1727981237412,0.27278733,60779.0,60777.0,0.076936]
[1727981237928,0.10825533,60779.0,60777.0,0.241471]
[1727981238742,0.10825533,60779.0,60778.0,0.164533]
[1727981239432,0.10925533,60779.0,60778.0,0.164533]
[1727981240104,0.11025533,60779.0,60778.0,0.169533]
[1727981240782,0.11025533,60779.0,60778.0,0.172533]
[1727981244565,0.002,60779.0,60778.0,0.172533]
[1727981244814,0.002,60779.0,60778.0,0.352733]
[1727981245050,0.002,60779.0,60778.0,0.008]
[1727981245265,0.11025533,60779.0,60778.0,0.008]
[1727981245544,0.41871536,60779.0,60778.0,0.009636]
[1727981245793,0.50251601,60779.0,60778.0,0.009636]
[1727981246009,0.64863988,60779.0,60778.0,0.009636]
[1727981246232,0.52551601,60779.0,60778.0,0.009636]
[1727981246447,0.55131504,60779.0,60778.0,0.006636]
[1727981246926,0.71106368,60779.0,60778.0,0.007636]
[1727981247141,0.71118611,60779.0,60778.0,0.007636]
[1727981247828,0.56331504,60779.0,60778.0,0.007636]
[1727981248042,0.70718611,60779.0,60778.0,0.002636]
[1727981248255,0.70718611,60779.0,60778.0,0.003636]
[1727981248256,0.57331504,60779.0,60778.0,0.003636]
[1727981248500,0.71118611,60779.0,60778.0,0.001636]
[1727981248714,0.72718611,60779.0,60778.0,0.002636]
[1727981248927,0.74118611,60779.0,60778.0,0.002636]
[1727981249586,0.73918611,60779.0,60778.0,0.002636]
[1727981250034,0.74118611,60779.0,60778.0,0.002636]
[1727981250536,0.73918611,60779.0,60778.0,0.002636]
[1727981250748,0.71538708,60779.0,60778.0,0.002636]
[1727981251248,0.71338708,60779.0,60778.0,0.002636]
[1727981251455,0.56551601,60779.0,60778.0,0.002636]
[1727981253094,0.56751601,60779.0,60778.0,0.002636]
[1727981253693,0.56551601,60779.0,60778.0,0.002636]
[1727981254132,0.59131641,60779.0,60778.0,0.002636]
[1727981254366,0.59331641,60779.0,60778.0,0.002636]
[1727981255242,0.56751601,60779.0,60778.0,0.002636]
[1727981255905,0.71537687,60779.0,60778.0,0.002636]
[1727981256340,0.87856358,60779.0,60778.0,0.002636]
[1727981256564,0.87849817,60779.0,60778.0,0.002636]
[1727981256799,0.71531146,60779.0,60778.0,0.002636]
[1727981257067,0.71331146,60779.0,60778.0,0.002636]
[1727981257297,0.56551601,60779.0,60778.0,0.002636]
[1727981258163,0.56751601,60779.0,60778.0,0.002636]
[1727981258627,0.289533,60778.0,60777.0,0.001636]
[1727981258831,0.88446137,60778.0,60777.0,0.001636]
[1727981259041,0.96206137,60778.0,60777.0,0.001636]
[1727981259714,0.97606137,60778.0,60777.0,0.001636]
[1727981259930,0.99006137,60778.0,60777.0,0.001636]
[1727981260378,0.83891494,60778.0,60777.0,0.001636]
[1727981261353,0.98664198,60778.0,60777.0,0.001636]
[1727981263370,0.83691494,60778.0,60777.0,0.001636]
[1727981263588,0.73871494,60778.0,60777.0,0.001636]
[1727981264227,0.7869928,60778.0,60777.0,0.001636]
[1727981264437,0.42665703,60778.0,60777.0,0.001636]
[1727981264930,0.32665703,60778.0,60777.0,0.079636]
[1727981265564,0.31265703,60778.0,60777.0,0.079636]
[1727981265806,0.30265703,60778.0,60777.0,0.079636]
[1727981266250,0.40465703,60778.0,60777.0,0.079636]
[1727981267419,0.24012403,60778.0,60777.0,0.079636]
[1727981267647,0.24012403,60778.0,60777.0,0.244171]
[1727981268087,0.24012403,60778.0,60777.0,0.079636]
[1727981269349,0.24012403,60778.0,60777.0,0.244171]
[1727981269350,0.03180103,60778.0,60777.0,0.244171]
[1727981269781,0.006,60778.0,60777.0,0.244171]
[1727981270065,0.006,60778.0,60777.0,0.336871]
[1727981270280,0.000818,60779.0,60778.0,0.333433]
[1727981270495,0.24750621,60789.0,60782.0,0.164522]
[1727981270719,0.24750621,60789.0,60782.0,0.35215026]
[1727981271409,0.24750621,60789.0,60782.0,0.43425026]
[1727981271617,0.24750621,60789.0,60782.0,0.52665026]
[1727981271618,0.000818,60789.0,60782.0,0.52665026]
[1727981272269,0.001818,60783.0,60782.0,0.53065026]
[1727981272715,0.000818,60783.0,60782.0,0.52665026]
[1727981272935,0.001818,60783.0,60782.0,0.53065026]
[1727981273378,0.001818,60783.0,60782.0,0.53465026]
[1727981273379,0.002818,60783.0,60782.0,0.53465026]
[1727981274304,0.002818,60783.0,60782.0,0.53665026]
[1727981274526,0.02860781,60783.0,60782.0,0.53465026]
[1727981274756,0.02760781,60783.0,60782.0,0.53065026]
[1727981274982,0.02760781,60783.0,60782.0,0.0901]
[1727981274983,0.02860781,60783.0,60782.0,0.0901]
[1727981275449,0.02760781,60783.0,60782.0,0.0861]
[1727981275670,0.002818,60783.0,60782.0,0.0971]
[1727981275921,0.001818,60783.0,60782.0,0.0931]
[1727981276149,0.000818,60783.0,60782.0,0.0821]
[1727981276388,0.001818,60783.0,60782.0,0.250622]
[1727981276631,0.001818,60783.0,60782.0,0.246622]
[1727981276632,0.000818,60783.0,60782.0,0.246622]
[1727981277109,0.000818,60783.0,60782.0,0.43425026]
[1727981277549,0.000818,60783.0,60782.0,0.247622]
[1727981277771,0.001818,60783.0,60782.0,0.247622]
[1727981277996,0.000818,60789.0,60782.0,0.247622]
[1727981277997,0.000818,60789.0,60788.0,0.164506]
[1727981278234,0.000818,60789.0,60788.0,0.336306]
[1727981278671,0.000818,60789.0,60788.0,0.49949271]
[1727981279181,0.000818,60789.0,60788.0,0.50049271]
[1727981280277,0.000818,60789.0,60788.0,0.337306]
[1727981280558,0.000818,60789.0,60788.0,0.336306]
[1727981281005,0.002818,60789.0,60788.0,0.350306]
[1727981281216,0.002818,60789.0,60788.0,0.345306]
[1727981281448,0.001818,60789.0,60788.0,0.336306]
[1727981281670,0.002818,60789.0,60788.0,0.346306]
[1727981281904,0.003818,60789.0,60788.0,0.352306]
[1727981282118,0.001818,60789.0,60788.0,0.346306]
[1727981282560,0.002818,60789.0,60788.0,0.352306]
[1727981282835,0.001818,60789.0,60788.0,0.164506]
[1727981284437,0.02760618,60789.0,60788.0,0.164506]
[1727981284646,0.02960618,60789.0,60788.0,0.177506]